[Event "24th Hoogeschool Zeeland 2022"]
[Site "Vlissingen"]
[Date "2022.08.07"]
[Round "2.17"]
[White "Van Kuijk, Vadim"]
[Black "Klepke, Ricardo"]
[Result "0-1"]
[ECO "B11"]
[WhiteElo "1927"]
[BlackElo "2293"]
[Annotator "RC"]
[PlyCount "144"]
[EventDate "2022.08.05"]
[EventType "swiss"]
[EventCountry "NED"]
[SourceTitle "playchess.com"]
[Source "ChessBase"]
[SourceQuality "1"]
[TimeControl "40/5400+30:1800+30"]

1. e4 {[%emt 0:00:03]} d5 {[%emt 0:00:05]} 2. exd5 {[%emt 0:00:23]} Qxd5 {[%emt 0:00:08]} 3. Nc3 {[%emt 0:00:05]} Qd8 {[%emt 0:00:06]} 4. d4 {[%emt 0:00:27]} Nf6 {[%emt 0:00:07]} 5. Nf3 {[%emt 0:00:21]} Bg4 {[%emt 0:00:09]} 6. h3 {[%emt 0:01:12]} Bxf3 {[%emt 0:00:08]} 7. Qxf3 {[%emt 0:00:08]} c6 {[%emt 0:00:06]} 8. Be3 {[%emt 0:00:25]} e6 {[%emt 0:00:20]} 9. Bd3 {[%emt 0:04:49]} Nbd7 {[%emt 0:01:45]} 10. Ne4 {[%emt 0:05:29]} Nxe4 {[%emt 0:01:05]} 11. Qxe4 {[%emt 0:05:12]} Nf6 {[%emt 0:00:22]} 12. Qf3 {[%emt 0:00:55]} Be7 {[%emt 0:01:09]} 13. O-O {[%emt 0:02:37]} O-O {[%emt 0:03:36]} 14. c4 {[%emt 0:01:32]} Qc7 {[%emt 0:08:44]} 15. Rfd1 {[%emt 0:13:23]} Rad8 {[%emt 0:03:21]} 16. Rab1 {[%emt 0:15:38]} Rd7 {[%emt 0:01:48]} 17. b4 {[%emt 0:05:02]} Rfd8 {[%emt 0:01:03]} 18. Be4 {[%emt 0:06:27]} Nxe4 {[%emt 0:13:14]} 19. Qxe4 {[%emt 0:00:18]} b5 {[%emt 0:00:20]} 20. Rdc1 {[%emt 0:07:18]} Qb7 {[%emt 0:03:54]} 21. cxb5 {[%emt 0:02:35]} cxb5 {[%emt 0:00:14]} 22. Qxb7 {[%emt 0:05:23]} Rxb7 {[%emt 0:00:08]} 23. Rc6 {[%emt 0:02:14]} Kf8 {[%emt 0:03:16]} 24. a3 {[%emt 0:00:50]} Bf6 {[%emt 0:05:16]} 25. Rd1 {[%emt 0:04:49]} Ke8 {[%emt 0:09:46]} 26. Kf1 {[%emt 0:02:55]} Rd5 {[%emt 0:01:41]} 27. Rc8+ {[%emt 0:04:09]} Bd8 {[%emt 0:04:46]} 28. Rdc1 {[%emt 0:01:19]} Rbd7 {[%emt 0:02:58]} 29. R1c5 {[%emt 0:02:43]} Ke7 {[%emt 0:19:17]} 30. Rxd5 {[%emt 0:02:31]} exd5 {[%emt 0:03:14]} 31. Ke2 {[%emt 0:02:14]} Rc7 {[%emt 0:01:51]} 32. Rxc7+ {[%emt 0:01:41]} Bxc7 {[%emt 0:00:06]} 33. Kf3 {[%emt 0:01:18]} Ke6 {[%emt 0:00:40]} 34. Bd2 {[%emt 0:00:25]} g6 {[%emt 0:01:40]} 35. Ke2 {[%emt 0:00:35]} Bb6 {[%emt 0:00:28]} 36. Kd3 {[%emt 0:00:11]} Bd8 {[%emt 0:01:01]} 37. g3 {[%emt 0:00:32]} f5 {[%emt 0:00:30]} 38. f4 {[%emt 0:00:11]} Kf6 {[%emt 0:01:16]} 39. Ke2 {[%emt 0:00:40]} Bb6 {[%emt 0:00:26]} 40. Be3 {[%emt 0:00:44]} a5 {[%emt 0:00:43]} 41. Kf3 {[%emt 0:03:47]} Kg7 {[%emt 0:01:35]} 42. Bf2 {[%emt 0:03:17]} Bc7 {[%emt 0:01:26]} 43. Be3 {[%emt 0:03:38]} Kh6 {[%emt 0:00:13]} 44. Kg2 {[%emt 0:03:32]} Kh5 {[%emt 0:01:21]} 45. Kf3 {[%emt 0:01:17]} Bd8 {[%emt 0:01:04]} 46. Bd2 {[%emt 0:02:05]} axb4 {[%emt 0:00:54]} 47. axb4 {[%emt 0:00:15]} Be7 {[%emt 0:00:07]} 48. Be1 {[%emt 0:08:02]} g5 {[%emt 0:01:24]} 49. Bd2 {[%emt 0:00:58]} g4+ {[%emt 0:03:42]} 50. Kg2 {[%emt 0:00:29]} gxh3+ {[%emt 0:00:06]} 51. Kxh3 {[%emt 0:00:04]} h6 {[%emt 0:00:13]} 52. Be1 {[%emt 0:00:16]} Kg6 {[%emt 0:00:18]} 53. Bd2 {[%emt 0:00:23]} h5 {[%emt 0:00:34]} 54. Be1 {[%emt 0:04:58]} h4 {[%emt 0:07:50]} 55. Bd2 {[%emt 0:03:10]} Kh5 {[%emt 0:00:30]} 56. Bc3 {[%emt 0:00:33]} Bf6 {[%emt 0:00:33]} 57. gxh4 {[%emt 0:00:30]} Bxh4 {[%emt 0:00:07]} 58. Bd2 {[%emt 0:00:28]} Bf2 {[%emt 0:00:23]} 59. Bc3 {[%emt 0:00:04]} Be3 {[%emt 0:02:27]} 60. Kg3 {[%emt 0:00:03]} Bc1 {[%emt 0:00:11]} 61. Kf3 {[%emt 0:00:16]} Kh4 {[%emt 0:00:11]} 62. Be1+ {[%emt 0:00:36]} Kh3 {[%emt 0:00:05]} 63. Bc3 {[%emt 0:00:40]} Kh2 {[%emt 0:00:38]} 64. Be1 {[%emt 0:00:20]} Bb2 {[%emt 0:01:14]} 65. Ke3 {[%emt 0:00:21]} Kg2 {[%emt 0:02:54]} 66. Bd2 {[%emt 0:00:31]} Kf1 {[%emt 0:02:03]} 67. Kd3 {[%emt 0:00:37]} Kf2 {[%emt 0:00:57]} 68. Be3+ {[%emt 0:00:21]} Kf3 {[%emt 0:03:07]} 69. Bd2 {[%emt 0:00:11]} Ba3 {[%emt 0:05:22]} 70. Kc2 {[%emt 0:01:59]} Ke2 {[%emt 0:00:09]} 71. Bc3 {[%emt 0:00:14]} Ke3 {[%emt 0:00:15]} 72. Bd2+ {[%emt 0:01:10]} Kxd4 {[%emt 0:00:15]} 0-1

[Event "24th Hoogeschool Zeeland 2022"]
[Site "Vlissingen"]
[Date "2022.08.07"]
[Round "2.18"]
[White "Grochal, Joey"]
[Black "Reichardt, Gert"]
[Result "1/2-1/2"]
[ECO "D44"]
[WhiteElo "2290"]
[BlackElo "1979"]
[Annotator "NA RC"]
[PlyCount "67"]
[EventDate "2022.08.05"]
[EventType "swiss"]
[EventCountry "NED"]
[SourceTitle "playchess.com"]
[Source "ChessBase"]
[SourceQuality "1"]
[TimeControl "40/5400+30:1800+30"]

1. d4 {[%emt 0:00:05]} d5 {[%emt 0:00:10]} 2. c4 {[%emt 0:00:05]} c6 {[%emt 0:00:05]} 3. Nf3 {[%emt 0:00:20]} Nf6 {[%emt 0:00:07]} 4. Nc3 {[%emt 0:01:01]} e6 {[%emt 0:02:21]} 5. Bg5 {[%emt 0:02:55]} dxc4 {[%emt 0:01:48]} 6. e4 {[%emt 0:00:10]} b5 {[%emt 0:00:32]} 7. e5 {[%emt 0:00:11]} h6 {[%emt 0:01:26]} 8. Bh4 {[%emt 0:00:08]} g5 {[%emt 0:00:03]} 9. Nxg5 {[%emt 0:00:07]} hxg5 {[%emt 0:00:03]} 10. Bxg5 {[%emt 0:00:08]} Nbd7 {[%emt 0:00:10]} 11. exf6 {[%emt 0:01:26]} Bb7 {[%emt 0:04:37]} 12. g3 {[%emt 0:01:04]} c5 {[%emt 0:00:59]} 13. d5 {[%emt 0:00:44]} Qb6 {[%emt 0:01:14]} 14. Bg2 {[%emt 0:00:56]} O-O-O {[%emt 0:02:20]} 15. O-O {[%emt 0:00:15]} b4 {[%emt 0:00:37]} 16. Na4 {[%emt 0:03:00]} Qb5 {[%emt 0:01:27]} 17. a3 {[%emt 0:02:29]} Nb8 {[%emt 0:03:14]} 18. axb4 {[%emt 0:06:28]} cxb4 {[%emt 0:01:02]} 19. Qg4 {[%emt 0:05:55]} Bxd5 {[%emt 0:03:59]} 20. Rfc1 {[%emt 0:10:34]} Nd7 {[%emt 0:08:37]} 21. Bxd5 {[%emt 0:18:31]} exd5 {[%emt 0:00:42]} 22. b3 {[%emt 0:05:57]} c3 {[%emt 0:06:03]} 23. Qd4 {[%emt 0:11:07]} Bc5 {[%emt 0:06:04]} 24. Nxc5 {[%emt 0:02:26]} Qxc5 {[%emt 0:00:48]} 25. Be3 {[%emt 0:03:56]} Qxd4 {[%emt 0:03:24]} 26. Bxd4 {[%emt 0:00:02]} Rhe8 {[%emt 0:00:13]} 27. Ra4 {[%emt 0:00:12]} a5 {[%emt 0:01:45]} 28. Rxa5 {[%emt 0:00:18]} Ne5 {[%emt 0:04:06]} 29. Bxc3 {[%emt 0:06:28]} bxc3 {[%emt 0:04:18]} 30. Rxc3+ {[%emt 0:00:04]} Kb7 {[%emt 0:03:01]} 31. Rcc5 {[%emt 0:00:15]} Nf3+ {[%emt 0:00:36]} 32. Kg2 {[%emt 0:00:11]} Ne1+ {[%emt 0:00:21]} 33. Kf1 {[%emt 0:00:14]} d4 {[%emt 0:00:42]} 34. Rab5+ {[%emt 0:00:04]} 1/2-1/2

[Event "24th Hoogeschool Zeeland 2022"]
[Site "Vlissingen"]
[Date "2022.08.07"]
[Round "2.19"]
[White "Ollenberger, Roland"]
[Black "Gorny, Michael"]
[Result "1-0"]
[ECO "B37"]
[WhiteElo "2264"]
[BlackElo "1962"]
[Annotator "RC"]
[PlyCount "67"]
[EventDate "2022.08.05"]
[EventType "swiss"]
[EventCountry "NED"]
[SourceTitle "playchess.com"]
[Source "ChessBase"]
[SourceQuality "1"]
[TimeControl "40/5400+30:1800+30"]

1. Nf3 {[%emt 0:00:28]} c5 {[%emt 0:00:49]} 2. c4 {[%emt 0:01:46]} Nc6 {[%emt 0:01:00]} 3. Nc3 {[%emt 0:00:06]} g6 {[%emt 0:02:25]} 4. d4 {[%emt 0:01:38]} cxd4 {[%emt 0:00:14]} 5. Nxd4 {[%emt 0:00:06]} Bg7 {[%emt 0:00:11]} 6. Nc2 {[%emt 0:00:08]} d6 {[%emt 0:02:14]} 7. e4 {[%emt 0:00:07]} Nf6 {[%emt 0:01:35]} 8. Be2 {[%emt 0:01:56]} O-O {[%emt 0:00:58]} 9. h4 {[%emt 0:03:28]} Ne5 {[%emt 0:09:11]} 10. h5 {[%emt 0:05:04]} Be6 {[%emt 0:06:33]} 11. Ne3 {[%emt 0:11:15]} Rc8 {[%emt 0:01:06]} 12. b3 {[%emt 0:11:09]} b5 {[%emt 0:17:21]} 13. f4 {[%emt 0:05:11]} Nxc4 {[%emt 0:01:47]} 14. bxc4 {[%emt 0:00:38]} Nxe4 {[%emt 0:00:35]} 15. Nxe4 {[%emt 0:00:22]} Bxa1 {[%emt 0:00:18]} 16. Ng5 {[%emt 0:03:04]} Qa5+ {[%emt 0:18:12]} 17. Kf2 {[%emt 0:04:35]} Qb6 {[%emt 0:01:43]} 18. hxg6 {[%emt 0:01:34]} hxg6 {[%emt 0:00:57]} 19. Rh8+ {[%emt 0:02:40]} Kg7 {[%emt 0:06:14]} 20. Rh7+ {[%emt 0:00:07]} Kg8 {[%emt 0:00:41]} 21. Qh1 {[%emt 0:00:10]} Qd4 {[%emt 0:00:41]} 22. Rh4 {[%emt 0:23:37]} Rc5 {[%emt 0:07:20]} 23. f5 {[%emt 0:05:16]} Rxf5+ {[%emt 0:00:30]} 24. Bf3 {[%emt 0:01:04]} Qg7 {[%emt 0:09:54]} 25. Ng4 {[%emt 0:08:22]} Bd4+ {[%emt 0:02:59]} 26. Ke1 {[%emt 0:01:19]} Bc3+ {[%emt 0:01:21]} 27. Kd1 {[%emt 0:00:26]} Qd4+ {[%emt 0:01:10]} 28. Kc2 {[%emt 0:00:29]} Rf4 {[%emt 0:04:28]} 29. Nh6+ {[%emt 0:00:54]} Kg7 {[%emt 0:00:05]} 30. Rxf4 {[%emt 0:00:16]} Qf2+ {[%emt 0:02:06]} 31. Kxc3 {[%emt 0:00:22]} Bxc4 {[%emt 0:00:30]} 32. Nf5+ {[%emt 0:00:37]} gxf5 {[%emt 0:00:48]} 33. Qh7+ {[%emt 0:00:06]} Kf6 {[%emt 0:00:05]} 34. Rxf5# {[%emt 0:00:12]} 1-0

[Event "24th Hoogeschool Zeeland 2022"]
[Site "Vlissingen"]
[Date "2022.08.07"]
[Round "2.20"]
[White "Kalisvaart, Peter"]
[Black "Lammens, Tim"]
[Result "0-1"]
[ECO "D00"]
[WhiteElo "1979"]
[BlackElo "2255"]
[Annotator "RC"]
[PlyCount "70"]
[EventDate "2022.08.05"]
[EventType "swiss"]
[EventCountry "NED"]
[SourceTitle "playchess.com"]
[Source "ChessBase"]
[SourceQuality "1"]
[TimeControl "40/5400+30:1800+30"]

1. d4 {[%emt 0:00:03]} Nf6 {[%emt 0:00:05]} 2. Bg5 {[%emt 0:00:07]} d5 {[%emt 0:00:12]} 3. Bxf6 {[%emt 0:00:10]} exf6 {[%emt 0:00:08]} 4. e3 {[%emt 0:00:06]} Nd7 {[%emt 0:00:54]} 5. c4 {[%emt 0:00:24]} dxc4 {[%emt 0:00:20]} 6. Bxc4 {[%emt 0:00:08]} Bd6 {[%emt 0:00:49]} 7. Nf3 {[%emt 0:00:16]} O-O {[%emt 0:01:10]} 8. O-O {[%emt 0:00:15]} f5 {[%emt 0:01:47]} 9. Nc3 {[%emt 0:01:32]} c6 {[%emt 0:00:21]} 10. Qc2 {[%emt 0:03:54]} Qe7 {[%emt 0:03:35]} 11. Rfe1 {[%emt 0:06:49]} Nf6 {[%emt 0:02:27]} 12. Bd3 {[%emt 0:04:52]} g6 {[%emt 0:00:26]} 13. h3 {[%emt 0:11:18]} Be6 {[%emt 0:03:16]} 14. e4 {[%emt 0:01:53]} fxe4 {[%emt 0:01:55]} 15. Nxe4 {[%emt 0:00:37]} Nxe4 {[%emt 0:00:52]} 16. Rxe4 {[%emt 0:00:32]} Qf6 {[%emt 0:08:38]} 17. Ne5 {[%emt 0:06:47]} Rad8 {[%emt 0:07:04]} 18. Qe2 {[%emt 0:05:29]} Bd5 {[%emt 0:11:56]} 19. Re3 {[%emt 0:10:02]} c5 {[%emt 0:07:33]} 20. Ng4 {[%emt 0:00:53]} Qxd4 {[%emt 0:02:40]} 21. Rd1 {[%emt 0:00:26]} Qg7 {[%emt 0:07:34]} 22. Bb1 {[%emt 0:02:23]} Bc6 {[%emt 0:06:12]} 23. Ne5 {[%emt 0:03:52]} Bxe5 {[%emt 0:02:42]} 24. Rxd8 {[%emt 0:00:20]} Rxd8 {[%emt 0:00:02]} 25. Rxe5 {[%emt 0:00:09]} Rd1+ {[%emt 0:03:23]} 26. Qxd1 {[%emt 0:00:21]} Qxe5 {[%emt 0:00:05]} 27. Qc2 {[%emt 0:03:10]} Qg5 {[%emt 0:05:01]} 28. g3 {[%emt 0:04:29]} Qd5 {[%emt 0:01:13]} 29. Kf1 {[%emt 0:00:21]} Qh1+ {[%emt 0:05:58]} 30. Ke2 {[%emt 0:00:08]} Bb5+ {[%emt 0:00:30]} 31. Ke3 {[%emt 0:02:48]} Qe1+ {[%emt 0:00:53]} 32. Kf4 {[%emt 0:00:37]} Bd7 {[%emt 0:06:21]} 33. g4 {[%emt 0:01:06]} Bc6 {[%emt 0:01:13]} 34. g5 {[%emt 0:04:35]} Qg1 {[%emt 0:05:34]} 35. h4 {[%emt 0:02:34]} Qh1 {[%emt 0:01:47]} 0-1

[Event "24th Hoogeschool Zeeland 2022"]
[Site "Vlissingen"]
[Date "2022.08.07"]
[Round "2.22"]
[White "Wiewesiek, Timo"]
[Black "Grutter, Tim"]
[Result "1-0"]
[ECO "A15"]
[WhiteElo "1976"]
[BlackElo "2246"]
[Annotator "RC"]
[PlyCount "92"]
[EventDate "2022.08.05"]
[EventType "swiss"]
[EventCountry "NED"]
[SourceTitle "playchess.com"]
[Source "ChessBase"]
[SourceQuality "1"]
[TimeControl "40/5400+30:1800+30"]

1. b3 {[%emt 0:00:03]} Nf6 {[%emt 0:00:14]} 2. Bb2 {[%emt 0:00:11]} g6 {[%emt 0:00:03]} 3. c4 {[%emt 0:01:42]} Bg7 {[%emt 0:00:18]} 4. Nc3 {[%emt 0:03:45]} O-O {[%emt 0:00:55]} 5. Nf3 {[%emt 0:01:52]} d6 {[%emt 0:00:19]} 6. g3 {[%emt 0:10:32]} e5 {[%emt 0:00:34]} 7. Bg2 {[%emt 0:05:06]} Nc6 {[%emt 0:00:14]} 8. O-O {[%emt 0:00:47]} e4 {[%emt 0:03:17]} 9. Ne1 {[%emt 0:05:39]} Bf5 {[%emt 0:05:50]} 10. d4 {[%emt 0:11:59]} Qd7 {[%emt 0:12:58]} 11. e3 {[%emt 0:09:59]} Rae8 {[%emt 0:03:22]} 12. Ba3 {[%emt 0:05:48]} Bh3 {[%emt 0:02:53]} 13. c5 {[%emt 0:03:16]} d5 {[%emt 0:01:51]} 14. b4 {[%emt 0:02:14]} Bxg2 {[%emt 0:00:39]} 15. Kxg2 {[%emt 0:00:31]} Ne7 {[%emt 0:05:05]} 16. c6 {[%emt 0:08:29]} Nxc6 {[%emt 0:05:03]} 17. b5 {[%emt 0:03:53]} Ne7 {[%emt 0:00:52]} 18. Rc1 {[%emt 0:00:33]} Ra8 {[%emt 0:04:13]} 19. Qb3 {[%emt 0:02:21]} Rfd8 {[%emt 0:03:18]} 20. Nc2 {[%emt 0:02:02]} Nf5 {[%emt 0:01:52]} 21. Rg1 {[%emt 0:05:07]} h5 {[%emt 0:02:46]} 22. Na4 {[%emt 0:01:57]} h4 {[%emt 0:01:16]} 23. Nc5 {[%emt 0:02:08]} Qc8 {[%emt 0:00:28]} 24. Nb4 {[%emt 0:02:45]} h3+ {[%emt 0:03:01]} 25. Kf1 {[%emt 0:03:15]} Ng4 {[%emt 0:01:05]} 26. Ke2 {[%emt 0:00:35]} Ne7 {[%emt 0:01:02]} 27. Nxb7 {[%emt 0:03:14]} Qxb7 {[%emt 0:02:25]} 28. Na6 {[%emt 0:00:12]} c6 {[%emt 0:01:59]} 29. Bxe7 {[%emt 0:00:37]} Qxe7 {[%emt 0:00:11]} 30. bxc6 {[%emt 0:00:21]} Qf6 {[%emt 0:00:20]} 31. Rgf1 {[%emt 0:00:31]} Nxh2 {[%emt 0:00:47]} 32. Qb7 {[%emt 0:01:12]} Qf3+ {[%emt 0:01:10]} 33. Kd2 {[%emt 0:00:19]} Nxf1+ {[%emt 0:00:14]} 34. Rxf1 {[%emt 0:00:04]} Rac8 {[%emt 0:02:02]} 35. c7 {[%emt 0:00:56]} Re8 {[%emt 0:00:20]} 36. Nb4 {[%emt 0:03:18]} Qg2 {[%emt 0:01:34]} 37. Re1 {[%emt 0:00:57]} h2 {[%emt 0:04:19]} 38. Nxd5 {[%emt 0:00:13]} Qxf2+ {[%emt 0:01:12]} 39. Re2 {[%emt 0:00:20]} Qxe2+ {[%emt 0:00:32]} 40. Kxe2 {[%emt 0:00:04]} h1=Q {[%emt 0:00:06]} 41. Ne7+ {[%emt 0:04:25]} Rxe7 {[%emt 0:00:59]} 42. Qxc8+ {[%emt 0:00:15]} Bf8 {[%emt 0:00:45]} 43. Qd8 {[%emt 0:01:36]} Qg2+ {[%emt 0:00:19]} 44. Kd1 {[%emt 0:00:11]} Qf1+ {[%emt 0:00:07]} 45. Kd2 {[%emt 0:00:33]} Qd3+ {[%emt 0:00:05]} 46. Ke1 {[%emt 0:00:05]} Qc3+ {[%emt 0:00:07]} 1-0

[Event "24th Hoogeschool Zeeland 2022"]
[Site "Vlissingen"]
[Date "2022.08.07"]
[Round "2.23"]
[White "Laux, Dominik"]
[Black "Omota, Vlad"]
[Result "1-0"]
[ECO "C18"]
[WhiteElo "2320"]
[BlackElo "1953"]
[Annotator "RC"]
[PlyCount "45"]
[EventDate "2022.08.05"]
[EventType "swiss"]
[EventCountry "NED"]
[SourceTitle "playchess.com"]
[Source "ChessBase"]
[SourceQuality "1"]
[TimeControl "40/5400+30:1800+30"]

1. e4 {[%emt 0:03:39]} e6 {[%emt 0:00:07]} 2. d4 {[%emt 0:01:03]} d5 {[%emt 0:00:06]} 3. Nc3 {[%emt 0:00:12]} Bb4 {[%emt 0:00:08]} 4. e5 {[%emt 0:01:07]} c5 {[%emt 0:00:07]} 5. a3 {[%emt 0:00:20]} Bxc3+ {[%emt 0:00:09]} 6. bxc3 {[%emt 0:00:02]} Qc7 {[%emt 0:00:09]} 7. Qg4 {[%emt 0:00:46]} f5 {[%emt 0:00:59]} 8. Qg3 {[%emt 0:00:38]} Nc6 {[%emt 0:00:32]} 9. Nf3 {[%emt 0:01:28]} g6 {[%emt 0:04:09]} 10. Be2 {[%emt 0:01:59]} Bd7 {[%emt 0:01:32]} 11. O-O {[%emt 0:05:08]} O-O-O {[%emt 0:00:50]} 12. dxc5 {[%emt 0:05:45]} Nge7 {[%emt 0:00:51]} 13. Nd4 {[%emt 0:12:29]} a6 {[%emt 0:10:35]} 14. Bg5 {[%emt 0:09:15]} Rde8 {[%emt 0:14:28]} 15. Rab1 {[%emt 0:04:00]} h6 {[%emt 0:05:31]} 16. Bf6 {[%emt 0:01:46]} Rhg8 {[%emt 0:00:08]} 17. Rb6 {[%emt 0:04:31]} g5 {[%emt 0:09:16]} 18. Rfb1 {[%emt 0:04:26]} Nxd4 {[%emt 0:03:39]} 19. cxd4 {[%emt 0:00:42]} Bc6 {[%emt 0:00:06]} 20. Qc3 {[%emt 0:11:19]} Kd7 {[%emt 0:03:42]} 21. Qh3 {[%emt 0:01:03]} Kc8 {[%emt 0:09:36]} 22. Qxh6 {[%emt 0:02:04]} f4 {[%emt 0:06:15]} 23. Bg4 {[%emt 0:06:37]} 1-0

[Event "24th Hoogeschool Zeeland 2022"]
[Site "Vlissingen"]
[Date "2022.08.07"]
[Round "2.24"]
[White "Tibke, Jonas"]
[Black "Stillger, Bernhard"]
[Result "1/2-1/2"]
[ECO "B07"]
[WhiteElo "1961"]
[BlackElo "2245"]
[Annotator "RC"]
[PlyCount "81"]
[EventDate "2022.08.05"]
[EventType "swiss"]
[EventCountry "NED"]
[SourceTitle "playchess.com"]
[Source "ChessBase"]
[SourceQuality "1"]
[TimeControl "40/5400+30:1800+30"]

1. e4 {[%emt 0:00:04]} g6 {[%emt 0:00:18]} 2. d4 {[%emt 0:00:12]} Bg7 {[%emt 0:00:05]} 3. f4 {[%emt 0:00:41]} d6 {[%emt 0:08:17]} 4. Nf3 {[%emt 0:05:07]} Nf6 {[%emt 0:03:46]} 5. Bd3 {[%emt 0:02:38]} c5 {[%emt 0:02:58]} 6. dxc5 {[%emt 0:06:00]} Qa5+ {[%emt 0:00:31]} 7. Nbd2 {[%emt 0:05:40]} Qxc5 {[%emt 0:00:26]} 8. Nb3 {[%emt 0:00:45]} Qc7 {[%emt 0:02:32]} 9. O-O {[%emt 0:02:46]} O-O {[%emt 0:01:56]} 10. Qe1 {[%emt 0:03:03]} Na6 {[%emt 0:24:02]} 11. Kh1 {[%emt 0:10:04]} d5 {[%emt 0:02:21]} 12. e5 {[%emt 0:02:45]} Ne4 {[%emt 0:00:40]} 13. Bxe4 {[%emt 0:06:12]} dxe4 {[%emt 0:00:08]} 14. Nfd4 {[%emt 0:00:10]} b6 {[%emt 0:12:25]} 15. Qxe4 {[%emt 0:03:12]} Bb7 {[%emt 0:02:25]} 16. Qe2 {[%emt 0:02:45]} Nb4 {[%emt 0:02:59]} 17. c3 {[%emt 0:02:15]} Ba6 {[%emt 0:04:17]} 18. Nb5 {[%emt 0:01:05]} Qd7 {[%emt 0:00:13]} 19. a4 {[%emt 0:03:01]} Nc6 {[%emt 0:04:53]} 20. Rd1 {[%emt 0:05:05]} Qe6 {[%emt 0:02:21]} 21. Qc2 {[%emt 0:09:12]} Rac8 {[%emt 0:00:54]} 22. N3d4 {[%emt 0:00:20]} Nxd4 {[%emt 0:03:29]} 23. Nxd4 {[%emt 0:00:38]} Qc4 {[%emt 0:00:59]} 24. Be3 {[%emt 0:03:45]} Bb7 {[%emt 0:03:07]} 25. Rac1 {[%emt 0:03:08]} a6 {[%emt 0:02:32]} 26. b3 {[%emt 0:00:46]} Qc7 {[%emt 0:00:16]} 27. c4 {[%emt 0:00:24]} Qb8 {[%emt 0:02:47]} 28. Qe2 {[%emt 0:02:20]} Rfd8 {[%emt 0:02:34]} 29. Rc2 {[%emt 0:05:04]} Be4 {[%emt 0:01:40]} 30. Rcd2 {[%emt 0:01:10]} Qb7 {[%emt 0:00:32]} 31. Qf2 {[%emt 0:04:00]} Rb8 {[%emt 0:02:11]} 32. h3 {[%emt 0:02:27]} e6 {[%emt 0:00:52]} 33. Qf1 {[%emt 0:01:38]} Bf8 {[%emt 0:00:58]} 34. Bf2 {[%emt 0:00:52]} Be7 {[%emt 0:01:13]} 35. Bg3 {[%emt 0:01:34]} Rd7 {[%emt 0:01:15]} 36. Qf2 {[%emt 0:02:27]} Rbd8 {[%emt 0:01:38]} 37. Kh2 {[%emt 0:02:13]} Bb4 {[%emt 0:01:20]} 38. Re2 {[%emt 0:02:16]} Bc5 {[%emt 0:00:27]} 39. Red2 {[%emt 0:00:03]} Bb4 {[%emt 0:01:50]} 40. Re2 {[%emt 0:02:00]} Bc5 {[%emt 0:00:44]} 41. Red2 {[%emt 0:31:13]} 1/2-1/2

[Event "24th Hoogeschool Zeeland 2022"]
[Site "Vlissingen"]
[Date "2022.08.08"]
[Round "4.1"]
[White "Ponomariov, Ruslan"]
[Black "Vrolijk, Liam"]
[Result "1/2-1/2"]
[ECO "A08"]
[WhiteElo "2642"]
[BlackElo "2464"]
[Annotator "TA"]
[PlyCount "58"]
[EventDate "2022.08.05"]
[EventType "swiss"]
[EventCountry "NED"]
[SourceTitle "playchess.com"]
[Source "ChessBase"]
[SourceQuality "1"]
[TimeControl "40/5400+30:1800+30"]

{[%evp 9,58,29,27,15,54,50,60,52,83,83,68,70,76,60,114,30,29,39,38,31,33,23,42,5,5,6,16,10,12,12,9,0,13,13,13,13,14,13,14,14,15,17,25,11,10,0,0,0,0,0,0]} 1. Nf3 {[%emt 0:00:03]} d5 {[%emt 0:00:24]} 2. g3 {[%emt 0:00:15]} Nf6 {[%emt 0:00:49]} 3. Bg2 {[%emt 0:00:45]} c5 {[%emt 0:00:21]} 4. O-O {[%emt 0:01:15]} g6 {[%emt 0:00:07]} 5. c4 {[%emt 0:07:12]} Bg7 {[%emt 0:02:00]} 6. Qa4+ {[%emt 0:03:18] A08: King's Indian Attack.} Nbd7 {[%emt 0:11:35]} 7. cxd5 {[%emt 0:02:05]} Nxd5 {[%emt 0:01:54]} 8. Nc3 {[%emt 0:00:23] White is slightly better.} Nxc3 {[%emt 0:06:07]} 9. dxc3 {[%emt 0:04:55]} O-O {[%emt 0:00:17]} 10. Be3 {[%emt 0:00:12]} Qc7 {[%emt 0:12:16][%cal Ob7b5]} 11. Rfd1 {[%emt 0:01:51] [#]} b5 $146 {[%emt 0:10:23]} (11... a5 $14) ({Predecessor:} 11... a6 12. Rd2 Rb8 13. Rad1 b5 14. Qf4 e5 15. Qh4 f6 16. b4 cxb4 17. cxb4 Rf7 {1-0 (33) Vasiukov,E (2555)-Lipman,V Moscow 1978}) 12. Qe4 {[%emt 0:15:39] White is more active.} ({Of course not} 12. Qxb5 $6 Rb8 13. Qc4 Rxb2 $11) ({White should try} 12. Qh4 $16 {And now Ng5 would win.} Nb6 13. Nd2 (13. Ng5 h6 $16)) 12... Nb6 $11 {[%emt 0:03:30][%cal Bd7b6,Bb6a4,Ba4b2][%mdl 32]} 13. Bf4 {[%emt 0:00:51]} Bb7 {[%emt 0:05:58]} 14. Qxg6 {[%emt 0:03:09]} hxg6 {[%emt 0:02:55]} 15. Bxc7 {[%emt 0:01:19]} Na4 {[%emt 0:02:42]} 16. Be5 {[%emt 0:02:32]} Rad8 {[%emt 0:03:26]} 17. Bxg7 {[%emt 0:08:52]} Kxg7 {[%emt 0:00:06]} 18. Rdc1 {[%emt 0:02:11]} Bxf3 {[%emt 0:01:33]} 19. Bxf3 {[%emt 0:00:08]} Nxb2 {[%emt 0:00:08]} 20. a4 {[%emt 0:02:55]} Nxa4 {[%emt 0:01:53]} 21. c4 {[%emt 0:00:08]} a6 {[%emt 0:01:22]} 22. cxb5 {[%emt 0:00:11]} axb5 {[%emt 0:00:07] White must now prevent ...Rd6.} 23. Bc6 {[%emt 0:00:03]} Rb8 {[%emt 0:00:56] [#]} 24. Bxb5 $1 {[%emt 0:00:35][%mdl 64] Remove Defender} Rxb5 {[%emt 0:00:07]} 25. Rxa4 {[%emt 0:00:04] KRR-KRR} Rd8 {[%emt 0:01:18]} 26. Ra7 {[%emt 0:02:58]} Kf6 {[%emt 0:05:13] The position is equal.} 27. Rc7 {[%emt 0:00:07]} Rd2 {[%emt 0:00:35]} 28. R7xc5 {[%emt 0:00:21]} Rxc5 {[%emt 0:00:07]} 29. Rxc5 {[%emt 0:00:05]} Rxe2 {[%emt 0:00:06] Weighted Error Value: White=0.12 (very precise) /Black=0.08 (flawless)} 1/2-1/2